Workbook

Sheet Ausfüllhinweise
A1: Berechnungsvorlage CO2-Einsparpotenzial
A4: Im Rahmen von AP 5 (siehe Anlage 1) ist die Berechnung bzw. Abschätzung des CO2-Einsparpotenzials des Maßnahmenkatalogs vorgegeben. Die Mustergliederung (siehe Abschnitt 5.3 Förderaufruf) sieht ein Kapitel zu diesem Thema vor. Nutzen Sie bitte diese Excel-Berechnungsvorlage für die Bestimmung des CO2-Einsparpotenzials sowie die hier gemachten Hinweise und verschriftlichen Sie die Ergebnisse in Ihrem Konzept/Abschlussbericht. Bei der Kombination von mehreren Schwerpunkten weisen Sie bitte getrennt für die jeweiligen Schwerpunkte (1 und 3 sowie 2 und 4) das Potenzial aus. Ausfüllhinweis: Füllen Sie nur die weißen Felder der Tabellen aus. Der ausgegraute Bereich berechnet sich dann entsprechend Ihrer Eingaben. Wichtig: Hierüber soll Ihnen die Berechnung erleichter werden. Formulieren Sie Ihre Ergebnisse in Ihrem Abschlussbericht/Konzept (siehe Mustergliederung Förderaufruf Abschnitt 5.3). Ergänzen Sie gerne weitere Konzept spezifischen Erläuterungen! Übermitteln Sie uns diese Tabelle im Excel-Format per E-Mail für die Begleitforschung an: elektromobilitaet@now-gmbh.de

Sheet CO2-Einsparpotenzial SP 1&3
A1: Berechnungsvorlage CO2-Einsparpotenzial Schwerpunkt 1 und 3
A3: Förderkennzeichen:
A5: Maßnahmen-Nr. (gemäß Maßnahmenkatalog) | B5: Titel | C5: Kurzbeschreibung | D5: Fahrzeugklasse | E5: Anzahl | F5: durchschnittliche Fahrleistung km /Jahr | G5: Nutzungsdauer in Jahren | H5: Emissionsfaktor (g CO2e/km) | I5: CO2-Einsparung in t CO2 e/Jahr | J5: CO2-Einsparung t CO2 e/ Nutzungsdauer
A6: Beispiel | B6: Beispiel | C6: Beispiel | D6: PKW, Klasse M1 (max. 8 Sitzplätzen ohne Fahrersitz); | E6: 20 | F6: 15000 | G6: =IF(ISBLANK(F6),"","8") -> 8 | H6: =IFERROR(VLOOKUP(D6,Tabelle2[#All],2,FALSE),"") -> 156.1461487 | I6: =IFERROR(((E6*F6*H6)/1000/1000),"") -> 46.84384461 | J6: =IFERROR(I6*G6,"") -> 374.7507569
A7: Beispiel | B7: Beispiel | C7: Beispiel | D7: leichtes Nutzfahrzeug (lNfz) | E7: 10 | F7: 20000 | G7: =IF(ISBLANK(F7),"","8") -> 8 | H7: =IFERROR(VLOOKUP(D7,Tabelle2[#All],2,FALSE),"") -> 227.9674835 | I7: =IFERROR(((E7*F7*H7)/1000/1000),"") -> 45.5934967 | J7: =IFERROR(I7*G7,"") -> 364.7479736
G8: =IF(ISBLANK(F8),"","8") ->  | H8: =IFERROR(VLOOKUP(D8,Tabelle2[#All],2,FALSE),"") ->  | I8: =IFERROR(((E8*F8*H8)/1000/1000),"") ->  | J8: =IFERROR(I8*G8,"") -> 
H9: =IFERROR(VLOOKUP(D9,Tabelle2[#All],2,FALSE),"") -> 
H10: =IFERROR(VLOOKUP(D10,Tabelle2[#All],2,FALSE),"") -> 
H11: =IFERROR(VLOOKUP(D11,Tabelle2[#All],2,FALSE),"") -> 
H12: =IFERROR(VLOOKUP(D12,Tabelle2[#All],2,FALSE),"") -> 
H13: =IFERROR(VLOOKUP(D13,Tabelle2[#All],2,FALSE),"") -> 
H14: =IFERROR(VLOOKUP(D14,Tabelle2[#All],2,FALSE),"") -> 
H15: =IFERROR(VLOOKUP(D15,Tabelle2[#All],2,FALSE),"") -> 
H16: =IFERROR(VLOOKUP(D16,Tabelle2[#All],2,FALSE),"") -> 
H17: =IFERROR(VLOOKUP(D17,Tabelle2[#All],2,FALSE),"") -> 
H18: =IFERROR(VLOOKUP(D18,Tabelle2[#All],2,FALSE),"") -> 
H19: =IFERROR(VLOOKUP(D19,Tabelle2[#All],2,FALSE),"") -> 
H20: =IFERROR(VLOOKUP(D20,Tabelle2[#All],2,FALSE),"") -> 
H21: =IFERROR(VLOOKUP(D21,Tabelle2[#All],2,FALSE),"") -> 
H22: =IFERROR(VLOOKUP(D22,Tabelle2[#All],2,FALSE),"") -> 
H23: =IFERROR(VLOOKUP(D23,Tabelle2[#All],2,FALSE),"") -> 
H24: =IFERROR(VLOOKUP(D24,Tabelle2[#All],2,FALSE),"") -> 
H25: =IFERROR(VLOOKUP(D25,Tabelle2[#All],2,FALSE),"") ->  | I25: =IFERROR(((E25*F25*H25)/1000/1000),"") -> 
A26: Summe | I26: =SUM(I6:I25) -> 92.43734131 | J26: =SUM(J6:J25) -> 739.4987305
A28: Annahmen:
A29: Der benötigte Strom kommt ausschließlich aus Erneuerbaren Energien und damit entstehen im Betrieb keine CO2-Emissionen. Diese Annahme leitet sich daraus ab, dass die Verwendung von EE Zuwendungsvoraussetzung ist und damit als Bedingung für die Entwicklung des Maßnahmenkatalogs vorausgesetzt ist.
A30: Die beschafften Fahrzeuge ersetzen vergleichbare Verbrenner-Fahrzeuge
A31: Die entsprechend der Arbeitshilfe zur Ermittlung der Treibhausgasminderung (NKI 2020) nehmen wir eine Haltedauer von 8 Jahren bei den Fahrzeugen an
A32: Das HBEFA weist E-Faktoren für unterschiedliche Bezugsjahre aus. Da die Laufzeit der Konzepte i.d.R. bis Q1-2024 läuft und die Umsetzung der Maßnahmen voraussichtlich 2024/2025 beginnt, wird pauschal das Jahr 2025 als Bezugsjahr angenommen.
A33: Aufgrund der schlechten Datenlage wird der Emissionsfaktor für Leichtfahrzeuge pauschal mit der Hälfte des Emissionsfaktors für PKW angenommen.
A34: Kaltstartzuschläge werden nicht mit einbezogen, sodass hier nur die Emissionen im Betrieb betrachtet werden. Die Emissionen werden damit um ca. 3% unterschätzt.
A35: Für eine stringente Vorgehensweise wird hier die Tank-to-wheel (TTW) Perspektive eingenommen
A38: Bedienung:
A39: Zeilen einfügen: Weitere Zeilen können eingefügt werden. Um die Berechnungformeln in den grau markierten Zellen in die neue Zeile zu kopieren, muss vorher der Blattschutz aufgehoben werden (kein Passwort notwendig).
A40: Die Fahrzeugklasse muss korrekt in Spalte E eingetragen werden, damit der richtige Emissionsfaktor ausgewählt wird.

Sheet CO2-Einsparpotenzial SP 2&4
A1: Berechnungsvorlage CO2-Einsparpotenzial Schwerpunte 2 und 4
A3: Förderkennzeichen:
A5: Maßnahmen-Nr. (gemäß Maßnahmenkatalog) | B5: Titel | C5: Kurzbeschreibung | D5: Fahrzeugklasse | E5: eingesparte Fahrtleistungen mit Verbrenner km / Ø 8 Jahre | F5: Emissionsfaktor (g CO2e/km) | G5: CO2-Einsparung in t CO2 e/ Ø 8Jahre
A6: Beispiel | B6: Beispiel | C6: Beispiel | D6: Leichtfahrzeug | E6: 50000 | F6: =IFERROR(VLOOKUP(D6,Tabelle2[#All],2,FALSE),"") -> 78.07307435 | G6: =IFERROR(((E6*F6)/1000/1000),"") -> 3.903653717
F7: =IFERROR(VLOOKUP(D7,Tabelle2[#All],2,FALSE),"") ->  | G7: =IFERROR(((E7*F7)/1000/1000),"") -> 
F8: =IFERROR(VLOOKUP(D8,Tabelle2[#All],2,FALSE),"") ->  | G8: =IFERROR(((E8*F8)/1000/1000),"") -> 
F9: =IFERROR(VLOOKUP(D9,Tabelle2[#All],2,FALSE),"") -> 
F10: =IFERROR(VLOOKUP(D10,Tabelle2[#All],2,FALSE),"") -> 
F11: =IFERROR(VLOOKUP(D11,Tabelle2[#All],2,FALSE),"") -> 
F12: =IFERROR(VLOOKUP(D12,Tabelle2[#All],2,FALSE),"") -> 
F13: =IFERROR(VLOOKUP(D13,Tabelle2[#All],2,FALSE),"") -> 
F14: =IFERROR(VLOOKUP(D14,Tabelle2[#All],2,FALSE),"") -> 
F15: =IFERROR(VLOOKUP(D15,Tabelle2[#All],2,FALSE),"") ->  | G15: =IFERROR(((E15*F15)/1000/1000),"") -> 
F16: =IFERROR(VLOOKUP(D16,Tabelle2[#All],2,FALSE),"") -> 
F17: =IFERROR(VLOOKUP(D17,Tabelle2[#All],2,FALSE),"") -> 
F18: =IFERROR(VLOOKUP(D18,Tabelle2[#All],2,FALSE),"") -> 
F19: =IFERROR(VLOOKUP(D19,Tabelle2[#All],2,FALSE),"") -> 
F20: =IFERROR(VLOOKUP(D20,Tabelle2[#All],2,FALSE),"") -> 
F21: =IFERROR(VLOOKUP(D21,Tabelle2[#All],2,FALSE),"") -> 
F22: =IFERROR(VLOOKUP(D22,Tabelle2[#All],2,FALSE),"") -> 
F23: =IFERROR(VLOOKUP(D23,Tabelle2[#All],2,FALSE),"") -> 
F24: =IFERROR(VLOOKUP(D24,Tabelle2[#All],2,FALSE),"") -> 
F25: =IFERROR(VLOOKUP(D25,Tabelle2[#All],2,FALSE),"") -> 
F26: =IFERROR(VLOOKUP(D26,Tabelle2[#All],2,FALSE),"") -> 
F27: =IFERROR(VLOOKUP(D27,Tabelle2[#All],2,FALSE),"") -> 
F28: =IFERROR(VLOOKUP(D28,Tabelle2[#All],2,FALSE),"") -> 
F29: =IFERROR(VLOOKUP(D29,Tabelle2[#All],2,FALSE),"") -> 
F30: =IFERROR(VLOOKUP(D30,Tabelle2[#All],2,FALSE),"") -> 
F31: =IFERROR(VLOOKUP(D31,Tabelle2[#All],2,FALSE),"") -> 
A32: Summe | G32: =SUM(G6:G31) -> 3.903653717
A34: Annahmen:
A35: Der benötigte Strom kommt ausschließlich aus Erneuerbaren Energien und damit entstehen im Betrieb keine CO2-Emissionen. Diese Annahme leitet sich daraus ab, dass die Verwendung von EE Zuwendungsvoraussetzung ist und damit als Bedingung für die Entwicklung des Maßnahmenkatalogs vorausgesetzt ist.
A36: Die beschafften Fahrzeuge ersetzen vergleichbare Verbrenner-Fahrzeuge
A37: Die entsprechend der Arbeitshilfe zur Ermittlung der Treibhausgasminderung (NKI 2020) nehmen wir eine Haltedauer von 8 Jahren bei den Fahrzeugen an
A38: Das HBEFA weist E-Faktoren für unterschiedliche Bezugsjahre aus. Da die Laufzeit der Konzepte i.d.R. bis Q1-2024 läuft und die Umsetzung der Maßnahmen voraussichtlich 2024/2025 beginnt, wird pauschal das Jahr 2025 als Bezugsjahr angenommen.
A39: Aufgrund der schlechten Datenlage wird der Emissionsfaktor für Leichtfahrzeuge pauschal mit der Hälfte des Emissionsfaktors für PKW angenommen.
A40: Kaltstartzuschläge werden nicht mit einbezogen, sodass hier nur die Emissionen im Betrieb betrachtet werden. Die Emissionen werden damit um ca. 3% unterschätzt.
A41: Für eine stringente Vorgehensweise wird hier die Tank-to-wheel (TTW) Perspektive eingenommen
A44: Bedienung:
A45: Zeilen einfügen: Weitere Zeilen können eingefügt werden. Um die Berechnungformeln in den grau markierten Zellen in die neue Zeile zu kopieren, muss vorher der Blattschutz aufgehoben werden (kein Passwort notwendig).
A46: Die Fahrzeugklasse muss korrekt in Spalte E eingetragen werden, damit der richtige Emissionsfaktor ausgewählt wird.

Sheet Emissionsfaktoren
A2: Die aufgelisteten Emissionsfaktoren wurden dem Handbuch für Emissionsfaktoren (HBEFA) entnommen
A4: Fahrzeugklasse | B4: E-Faktor [g CO2e/km]
A5: PKW, Klasse M1 (max. 8 Sitzplätzen ohne Fahrersitz); | B5: 156.1461487
A6: leichtes Nutzfahrzeug (lNfz) | B6: 227.9674835
A7: schweres Nutzfahrzeuge (sNFZ) | B7: 699.9567261
A8: Linienbus (Lbus) | B8: 642.2242432
A9: Reisebus (Rbus) | B9: 902.2938232
A10: Leichtfahrzeug | B10: 78.07307435
